Cogmind - Beta 16.1 @@@ ROGUE MODE // 2026.02.10 @ 22:07:53 Player: AlmondRoll Result: Self-destructed Performance ------------- Evolutions (4) 2000 Regions Visited (9) 1800 Robots Destroyed (53) 265 Value Destroyed (2131) 2131 Prototype IDs (35) 700 Alien Tech Used (0) 0 Bonus (5807) 5807 TOTAL SCORE: 12703 Bonus ------- Triggered High Security 500 High Alert Combat Kills 382 Follower Combat Kills 3025 Entered Garrisons 400 Used RIF Installer 1500 Cogmind --------- Core Integrity 405/850 Matter 27/300 Energy 100/100 System Corruption 3% Temperature Cool (0) Movement Rolling (335) Ox17 Location -6/Factory Parts ------- > --- POWER (1+1) ------ Backup Power III (+) > --- PROPULSION (2) --- Armored Wheel (fused) > --- UTILITY (6+1) ---- Humpback Improved Signal Interpreter Layered Medium Armor Plating Relay Coupler [NC] (10) Rainbow Chip (+) > --- WEAPON (6) ------- Maul > --- INVENTORY (35) --- Enhanced Nuclear Core Huge Storage Unit Advanced Energy Well (500) High-capacity Matter Pod (200) High-capacity Matter Pod (200) High-capacity Matter Pod (200) High-capacity Matter Pod (200) Matter Compressor (250) Matter Compressor (250) Gravity Neutralizer Improved Trap Scanner Advanced Sensor Array Improved Terrain Scanner Advanced Terrain Scan Processor Microactuators Stasis Canceller Improved Propulsion Shielding Improved Medium Armor Plating Relay Coupler [NC] (33) Relay Coupler [Swarmer] (33) Relay Coupler [Grunt] (22) Relay Coupler [Grunt] (27) Relay Coupler [Sentry] (23) Relay Coupler [Sentry] (23) Relay Coupler [Hunter] (14) Relay Coupler [Hunter] (18) High-powered Tractor Beam Nova Cannon Tiamat Missile Launcher Fusion Bomb Launcher Multitool Lance PL-3XN's Ring of Power Peak State ------------ > --- POWER ------------ Particle Reactor > --- PROPULSION ------- Compact Wheel Armored Wheel Subdweller Monowheel > --- UTILITY ---------- Humpback Improved Trap Scanner Advanced Terrain Scan Processor Remote Force Field Relay Coupler [Grunt] Rainbow Chip > --- WEAPON ----------- Nova Cannon 1B-0RG's Assimilator Remote Datajack > --- INVENTORY -------- Enhanced Nuclear Core Compact Wheel Huge Storage Unit Advanced Energy Well High-capacity Matter Pod High-capacity Matter Pod High-capacity Matter Pod High-capacity Matter Pod High-capacity Matter Pod Matter Compressor Structural Scanner Advanced Sensor Array Improved Signal Interpreter IFF Parser Improved Terrain Scanner Transport Network Coupler Stasis Canceller Improved Propulsion Shielding Hardened Medium Armor Plating Improved Medium Armor Plating Relay Coupler [NC] Relay Coupler [NC] Relay Coupler [Swarmer] Relay Coupler [Swarmer] Relay Coupler [Grunt] Relay Coupler [Grunt] Relay Coupler [Sentry] Relay Coupler [Sentry] Relay Coupler [Hunter] Tiamat Missile Launcher Fusion Bomb Launcher Datajack Multitool Maul PL-3XN's Ring of Power [Rating: 134] Favorites ----------- Power Ion Engine Engine Ion Engine Power Core Light Nuclear Core Reactor Particle Reactor Propulsion Light Treads Treads Light Treads Leg Aluminum Leg Wheel Compact Wheel Utility Huge Storage Unit Device Improved Terrain Scanner Storage Huge Storage Unit Processor Rainbow Chip Hackware Relay Coupler [Grunt] Protection Propulsion Shielding Weapon 1B-0RG's Assimilator Energy Gun Medium Laser Energy Cannon Subdweller Beam Cannon Ballistic Cannon Light Cannon Launcher Tiamat Missile Launcher Special Weapon Remote Datajack Impact Weapon Maul Piercing Weapon Lance Special Melee Weapon 1B-0RG's Assimilator Build | -11 -10 -10 -8 -8 -8 -8 -6 -6 -6 ------- Run | Yrd Mat Sub Mat Sto Gar Rec Fac Gar Fac Slots Evolved 8 | . . . 4 . . . 4 . . Power . | . . . . . . . . . . Propulsion . | . . . . . . . . . . Utility 4 | . . . 1 . . . 3 . . Weapon 4 | . . . 3 . . . 1 . . Parts Attached 75 | 4 8 2 7 3 4 9 19 9 10 Power 9 | . 2 . 1 1 . . 3 1 1 Engine 5 | . 2 . 1 . . . 1 . 1 Core 3 | . . . . 1 . . 2 . . Reactor 1 | . . . . . . . . 1 . Propulsion 14 | 2 . 1 3 1 1 5 . 1 . Treads 5 | 2 . 1 . . 1 1 . . . Leg . | . . . . . . . . . . Wheel 9 | . . . 3 1 . 4 . 1 . Hover . | . . . . . . . . . . Flight . | . . . . . . . . . . Utility 38 | 2 3 . 2 1 3 4 10 6 7 Device 16 | 2 1 . 2 . 2 1 2 4 2 Storage 5 | . 1 . . . 1 1 2 . . Processor 5 | . . . . . . . 3 . 2 Hackware 3 | . . . . . . . 1 1 1 Protection 9 | . 1 . . 1 . 2 2 1 2 Artifact . | . . . . . . . . . . Weapon 14 | . 3 1 1 . . . 6 1 2 Energy Gun 2 | . 1 . . . . . 1 . . Energy Cannon 2 | . . 1 . . . . . 1 . Ballistic Gun . | . . . . . . . . . . Ballistic Cannon 2 | . 2 . . . . . . . . Launcher 3 | . . . . . . . 2 . 1 Special Weapon 1 | . . . . . . . 1 . . Impact Weapon 1 | . . . . . . . 1 . . Slashing Weapon . | . . . . . . . . . . Piercing Weapon 1 | . . . . . . . . . 1 Special Melee Weapon 2 | . . . 1 . . . 1 . . Unidentified Prototypes 9 | . . . 2 . . . 5 1 1 Parts Lost 9 | . . . . 1 1 . 1 . 6 Power 1 | . . . . . . . . . 1 Propulsion 4 | . . . . 1 1 . . . 2 Utility 2 | . . . . . . . 1 . 1 Weapon 2 | . . . . . . . . . 2 Highest Loss Streak 4 | . . . . 1 1 . 1 . 4 To Critical Strikes . | . . . . . . . . . . Average Backups 27 | 4 20 23 23 24 25 28 33 33 33 Power . | 1 . . . . . . . 1 1 Propulsion 3 | 2 3 6 7 4 4 4 2 . . Utility 18 | . 10 11 10 15 17 21 26 27 27 Weapon 3 | 1 5 4 5 3 2 1 1 2 3 Tool/Special . | . . . . . . . . . . Unused Backups 65 | 4 5 4 1 5 2 1 14 10 19 Power 1 | . 1 . . . . . . . . Propulsion 12 | 4 . . . 3 . 1 4 . . Utility 41 | . 2 3 . 1 . . 8 10 17 Weapon 10 | . 2 1 1 1 2 . 2 . 1 Tool/Special 1 | . . . . . . . . . 1 Average Slot Usage (%) 78 | . 99 99 61 62 62 55 66 68 69 Engine 5 | . 14 14 9 2 . . 1 . 2 Core 2 | . . . . 6 9 9 4 . . Reactor 1 | . . . . . . . . 4 4 Treads 10 | . 27 28 . . 2 1 . . . Wheel 9 | . . . 17 17 15 16 13 15 14 Device 7 | . 9 6 15 12 . 6 11 6 8 Storage 9 | . 14 14 9 9 9 9 6 5 5 Processor 3 | . . . . . . . 4 10 9 Hackware 2 | . . . . . . . 4 5 5 Protection 5 | . 4 7 1 5 17 4 3 3 1 Energy Gun 1 | . 10 . . . . . . . . Ballistic Cannon 7 | . 17 24 . . . . . . . Special Weapon 1 | . . . . . . . 1 5 4 Impact Weapon 2 | . . . . . . . 5 4 4 Special Melee Weapon 4 | . . . 8 9 9 9 6 5 5 Peak Build Rating 134 | 9 9 17 79 82 81 85 129 134 134 Average Rating 70 | 6 8 12 77 80 79 81 103 126 126 On Entrance 61 | 6 9 9 17 79 81 80 83 120 129 Avg Prop Armor Cover (%) 6 | . . . . . 7 6 . . . Naked Turns . | . . . . . . . . . . Heaviest Build 303 | 12 92 97 142 148 149 260 281 299 303 Greatest Support 56 | 40 40 40 32 32 26 38 48 56 56 Greatest Overweight (x) 15 | . 2 2 5 5 14 15 8 6 10 Average Overweight (x) 5 | . 1 2 4 4 6 7 6 5 6 Largest Inventory Capacity 35 | 8 25 25 25 25 25 35 35 35 35 Average Capacity 29 | 8 23 25 25 25 25 32 35 35 35 Most Carried 35 | 6 25 25 25 25 25 31 35 35 35 Average Carried 28 | 4 20 24 24 24 24 28 33 34 34 Final Capacity 35 | 8 25 25 25 25 25 35 35 35 35 Final Carried 35 | 5 25 25 25 25 25 31 35 35 33 Class Distribution -------------------- 53% | Mutant 19% | Bothacker-Mutant 15% | Hauler-Mutant 7% | Bothacker-Assassin 3% | Hauler-Assassin Dominant Class ---------------- Mutant | -10/Materials Mutant | -10/Subcaves Mutant | -8/Materials Mutant | -8/Storage Mutant | -8/Garrison Hauler-Mutant | -8/Recycling Hauler-Mutant | -6/Factory Bothacker-Mutant | -6/Garrison Bothacker-Assassin | -6/Factory Resources | -11 -10 -10 -8 -8 -8 -8 -6 -6 -6 ----------- Run | Yrd Mat Sub Mat Sto Gar Rec Fac Gar Fac Matter Collected 10597 | 200 1161 209 449 1206 1230 386 2822 1374 1560 Remotely 275 | . . . . . . . . . 275 Salvage Created 2565 | 132 1100 93 . . . . 319 501 420 Parts 73 | 7 39 5 . . . . 2 9 11 Haulers Intercepted 2 | . 2 . . . . . . . . Recyclers Shooed 6 | 1 3 . . . . . . . 2 Parts Field Recycled . | . . . . . . . . . . Retrieved Matter . | . . . . . . . . . . Parts Self-Destructed 1 | . . 1 . . . . . . . Prevented . | . . . . . . . . . . Parts Restored . | . . . . . . . . . . Kills | -11 -10 -10 -8 -8 -8 -8 -6 -6 -6 ------- Run | Yrd Mat Sub Mat Sto Gar Rec Fac Gar Fac Combat Hostiles Destroyed 24 | . 13 3 . . . . . . 8 Melee 1 | . . . . . . . . . 1 Guns 4 | . 4 . . . . . . . . Cannons 12 | . 9 3 . . . . . . . AOE 7 | . . . . . . . . . 7 Classes Destroyed 13 | 2 6 1 . . . . 1 . 3 Worker 4 | . 2 . . . . . 2 . . Builder 1 | . . . . . . . 1 . . Tunneler 3 | 2 1 . . . . . . . . Hauler 2 | . 2 . . . . . . . . Recycler 13 | 1 9 . . . . . 2 . 1 Mechanic 1 | . . . . . . . . . 1 Operator 1 | . 1 . . . . . . . . Watcher 3 | . 3 . . . . . . . . Swarmer 6 | . 6 . . . . . . . . Saboteur 1 | . . . . . . . . . 1 Grunt 14 | . 7 . . . . . . 1 6 Duelist 1 | . . . . . . . . . 1 Subdweller 3 | . . 3 . . . . . . . Best Kill Streak 7 | 3 4 1 . . . . 3 . 7 Combat Bots Only 7 | . 3 1 . . . . . . 7 Max Kills in Single Turn 2 | 1 1 1 . . . . 1 1 2 Gunslinging . | . . . . . . . . . . Exploded 2 | . . . . . . . . . 2 Melee 1 | . . . . . . . . . 1 Uniques/NPCs Destroyed . | . . . . . . . . . . Combat | -11 -10 -10 -8 -8 -8 -8 -6 -6 -6 -------- Run | Yrd Mat Sub Mat Sto Gar Rec Fac Gar Fac Hostile Shots Fired 307 | . 65 19 2 22 26 . 21 19 133 Missed 85 | . 19 9 . 6 10 . 4 3 34 Hits 222 | . 46 10 2 16 16 . 17 16 99 Projectile 222 | . 46 10 2 16 16 . 17 16 99 AOE 4 | . . 3 . . . . . . 1 Critical Strikes 5 | . 2 . . . . . 1 . 2 Damage Taken 3725 | . 530 279 34 217 431 . 416 331 1487 Core 891 | . 111 115 4 90 126 . 144 76 225 Absorbed by Shields 306 | . . . . . 13 . . 39 254 Redirected to Shielding 63 | . 4 17 . . 27 . . 15 . Regen/Repaired (Parts) 911 | . 123 . . 76 114 . 396 81 121 Core Remaining (%) 56 | 100 . 9 . . . 60 . . . Volleys Fired 164 | 8 71 25 . . . . 1 32 27 Largest 2 | 2 2 2 . . . . 1 1 1 Hottest 113 | 90 100 80 . . . . 5 113 46 Shots Fired 259 | 16 135 48 . . . . 1 32 27 Gun 87 | 16 71 . . . . . . . . Cannon 139 | . 64 48 . . . . . 27 . Launcher 8 | . . . . . . . . . 8 Special 25 | . . . . . . . 1 5 19 Kinetic 110 | . 64 46 . . . . . . . Thermal 116 | 16 71 2 . . . . . 27 . Explosive 8 | . . . . . . . . . 8 Electromagnetic . | . . . . . . . . . . Robot Hit Streak 17 | 5 9 6 . . . . 4 17 12 Robot Miss Streak 4 | 2 4 2 . . . . . 1 1 Penetration Max . | . . . . . . . . . . Secondary Targets . | . . . . . . . . . . Shots Hit Robots 184 | 11 80 27 . . . . 8 30 28 Core Hits 77 | 3 39 6 . . . . . 11 18 Critical Kills . | . . . . . . . . . . Critical Parts Destroyed 1 | . . . . . . . . 1 . Critical Strikes 6 | . 5 . . . . . . 1 . Burn 3 | . 3 . . . . . . . . Blast 2 | . 2 . . . . . . . . Smash 1 | . . . . . . . . 1 . Melee Attacks 162 | . . . . . . . 18 131 13 Impact 160 | . . . . . . . 16 131 13 Slashing . | . . . . . . . . . . Piercing . | . . . . . . . . . . Sneak Attacks 10 | . . . . . . . 6 1 3 Combat Hostiles 1 | . . . . . . . 1 . . Follow-up Attacks . | . . . . . . . . . . Damage Inflicted 5152 | 124 1332 211 . . 81 . 362 1073 1969 Guns 627 | 124 503 . . . . . . . . Cannons 1944 | . 746 211 . . . . . 987 . Explosions 1741 | . . . . . . . . . 1741 Melee 676 | . . . . . . . 362 86 228 Ramming 164 | . 83 . . . 81 . . . . Kinetic 957 | . 746 211 . . . . . . . Thermal 1614 | 124 503 . . . . . . 987 . Explosive 1741 | . . . . . . . . . 1741 Electromagnetic . | . . . . . . . . . . Impact 676 | . . . . . . . 362 86 228 Slashing . | . . . . . . . . . . Piercing . | . . . . . . . . . . Highest Corruption 7 | . . . . . 7 7 . . 2 Average Corruption 6 | . . . . . 7 7 . . 1 Corruption Purged . | . . . . . . . . . . Corruption Blocked . | . . . . . . . . . . Effects 40 | . . . . . 11 29 . . . Message Errors 10 | . . . . . 3 7 . . . Matter Fused 6 | . . . . . 3 3 . . . Heat Flow Errors 7 | . . . . . 1 6 . . . Energy Discharges 8 | . . . . . 3 5 . . . Parts Fused 2 | . . . . . . 2 . . . Data Loss (minor) 5 | . . . . . 1 4 . . . Data Loss (major) 2 | . . . . . . 2 . . . Overload Shots . | . . . . . . . . . . Overflow Damage 455 | . 4 . . . . . 202 86 163 Projectiles 4 | . 4 . . . . . . . . Explosions 121 | . . . . . . . . . 121 Melee 330 | . . . . . . . 202 86 42 Knockbacks 17 | . 10 1 . . . . 4 . 2 Impact 9 | . 3 . . . . . 4 . 2 Kinetic 6 | . 5 1 . . . . . . . Secondary 2 | . 2 . . . . . . . . Self-Inflicted Damage 151 | . . . . . 81 . . . 70 Shots 1 | . . . . . . . . . 1 Rammed 14 | . 13 . . . . . . . 1 Targets Rammed 16 | . 15 . . . . . . . 1 Kicked . | . . . . . . . . . . Crushed 2 | . 2 . . . . . . . . Highest Temperature 344 | 200 344 . . . 275 238 3 168 56 Average Temperature 88 | 89 99 . . . 138 107 3 74 21 Received Heat Transfer 897 | . 246 12 9 63 135 . 72 49 311 Effects 7 | 2 5 . . . . . . . . Shutdowns 1 | . 1 . . . . . . . . Interference 6 | 2 4 . . . . . . . . Siege Activations . | . . . . . . . . . . Martial Activations . | . . . . . . . . . . Shielding Activations . | . . . . . . . . . . Robots Disrupted . | . . . . . . . . . . Combat Hostiles . | . . . . . . . . . . Robots Corrupted 6 | . . . . . . . 5 . 1 Combat Hostiles . | . . . . . . . . . . Parts Fried 8 | . . . . . . . 7 . 1 Impact Corruptions 12 | . . . . . . . 9 1 2 Robots Melted 1 | 1 . . . . . . . . . Combat Hostiles . | . . . . . . . . . . Parts Melted 6 | 2 3 . . . . . . 1 . Heat Transferred 2913 | 323 1665 . . . . . . 925 . Parts Sabotaged . | . . . . . . . . . . Parts Stolen . | . . . . . . . . . . Parts Stripped . | . . . . . . . . . . Power Chain Reactions . | . . . . . . . . . . Alert | -11 -10 -10 -8 -8 -8 -8 -6 -6 -6 ------- Run | Yrd Mat Sub Mat Sto Gar Rec Fac Gar Fac Maximum Alert Level 5 | . . . . . 1 . . 5 5 Low Security (%) 61 | 100 100 . 100 100 60 100 100 12 . Level 1 7 | . . . . . 39 . . 13 . Level 2 3 | . . . . . . . . 15 . Level 3 3 | . . . . . . . . 15 . Level 4 16 | . . . . . . . . 18 86 Level 5 5 | . . . . . . . . 24 . High Security 1 | . . . . . . . . . 13 Max Security . | . . . . . . . . . . Peak Influence 2367 | 10 93 . 31 92 393 176 122 2367 1893 Initial 1242 | . . . . 4 1 176 . 52 1242 Average 460 | 1 25 . 4 28 169 12 16 1030 1395 Influence Increases 5843 | 15 499 . 48 370 563 84 397 2415 1452 Destroy 0b10 Robot/C 2180 | . 260 . 20 220 360 20 160 300 840 Destroy 0b10 Robot/NC 185 | 15 90 . . . . . 45 20 15 Destroy Leader 344 | . 60 . 10 60 20 . 34 10 150 Allied During Kill 479 | . . . 1 41 29 4 30 142 232 Successful Hack 167 | . 22 . 2 18 14 45 41 . 25 Disable Machine 150 | . 15 . 15 30 . 15 15 . 60 Anti-Garrison Action 1900 | . . . . . 100 . . 1800 . Destroy Structure 213 | . 7 . . 1 10 . 12 143 40 Partial Spotted 30 | . 30 . . . . . . . . Lose Combat Pursuer 195 | . 15 . . . 30 . 60 . 90 Influence Decreases 4095 | 15 444 55 37 378 173 477 322 123 2071 Entered New Map 1401 | . . 27 . 7 2 217 . 23 1125 Time Decay 1680 | 15 444 28 37 253 . 110 247 . 546 Lost Part 90 | . . . . 10 10 . 10 . 60 Lost Ally 774 | . . . . 108 161 . 65 100 340 Purge Threat 150 | . . . . . . 150 . . . Squads Dispatched 31 | . 2 . . 2 . . 6 . 21 Investigation 2 | . 2 . . . . . . . . Extermination 5 | . . . . . . . 3 . 2 Reinforcement 9 | . . . . 2 . . 3 . 4 Assault 13 | . . . . . . . . . 13 Garrison 2 | . . . . . . . . . 2 Intercept . | . . . . . . . . . . Searches Triggered . | . . . . . . . . . . Construction Impeded 2 | . . . . . . . 1 . 1 Haulers Reinforced 1 | . . . . . . . . . 1 Active Scanning Responses . | . . . . . . . . . . Cargo Convoy Interrupts 1 | . . . . . . . 1 . . Stealth | -11 -10 -10 -8 -8 -8 -8 -6 -6 -6 --------- Run | Yrd Mat Sub Mat Sto Gar Rec Fac Gar Fac Distress Signals 6 | . 2 . . 1 . 1 1 . 1 Communications Jammed . | . . . . . . . . . . Distress Signals . | . . . . . . . . . . Times Spotted 192 | . 27 3 2 15 22 3 23 21 76 Peak Tracking Total 21 | . 4 1 1 4 4 2 5 6 21 Tactical Retreats 9 | . 1 . . . 2 . 2 . 4 Traps | -11 -10 -10 -8 -8 -8 -8 -6 -6 -6 ------- Run | Yrd Mat Sub Mat Sto Gar Rec Fac Gar Fac Traps Triggered 13 | . . . . 1 1 . . 10 1 Indirectly . | . . . . . . . . . . Trap Hack Attempts . | . . . . . . . . . . Triggered . | . . . . . . . . . . Disarmed . | . . . . . . . . . . Reprogrammed . | . . . . . . . . . . Reused . | . . . . . . . . . . Traps Extracted . | . . . . . . . . . . Installed . | . . . . . . . . . . Triggered . | . . . . . . . . . . Machines | -11 -10 -10 -8 -8 -8 -8 -6 -6 -6 ---------- Run | Yrd Mat Sub Mat Sto Gar Rec Fac Gar Fac Machines Disabled 17 | . 2 1 1 2 . 1 1 5 4 Max in Single Turn 1 | . 1 1 . . . . 1 1 1 Garrison Relay 5 | . . . . . . . . 5 . Machines Repaired . | . . . . . . . . . . Machines Dismantled . | . . . . . . . . . . Machines Sabotaged . | . . . . . . . . . . Overloaded Fab Kills . | . . . . . . . . . . Hacking | -11 -10 -10 -8 -8 -8 -8 -6 -6 -6 --------- Run | Yrd Mat Sub Mat Sto Gar Rec Fac Gar Fac Machines Accessed 46 | . 10 2 2 3 2 11 7 1 8 Terminals 24 | . 7 . 1 2 2 5 2 1 4 Fabricators . | . . . . . . . . . . Repair Stations 2 | . 1 . . . . . 1 . . Recycling Units 12 | . 2 . . . . 6 1 . 3 Scanalyzers 4 | . . . 1 . . . 2 . 1 Garrison Access 2 | . . . . 1 . . 1 . . Total Hacks 134 | . 25 6 5 10 2 40 23 4 19 Successful 76 | . 13 6 3 7 1 21 14 . 11 Failed 57 | . 12 . 2 3 1 18 9 4 8 Catastrophic 9 | . 1 . . . . 2 3 1 2 Database Lockouts 1 | . . . . . . 1 . . . Manual 45 | . 4 . 1 6 . 18 3 . 13 Terminals 69 | . 12 . 2 8 2 23 8 4 10 Fabricators . | . . . . . . . . . . Repair Stations 11 | . 6 . . . . . 5 . . Recycling Units 32 | . 7 . . . . 17 2 . 6 Scanalyzers 12 | . . . 3 . . . 6 . 3 Garrison Access 4 | . . . . 2 . . 2 . . Terminal Hacks 35 | . 8 6 1 4 1 11 3 . 1 Record 5 | . . 5 . . . . . . . Part Schematic 3 | . . . . . . 3 . . . Robot Analysis 2 | . 2 . . . . . . . . Prototype ID Bank 6 | . 1 . . . . 5 . . . Terminal Index 2 | . . . . 1 . . . . 1 Alert Level 2 | . . . . . . 1 1 . . Unreport Threat 2 | . . . . . . 2 . . . Locate Traps 5 | . 3 . 1 . . . 1 . . Dispatch Records 1 | . 1 . . . . . . . . Maintenance Status 1 | . . . . 1 . . . . . Transport Status 1 | . . . . 1 . . . . . Recall Extermination 1 | . . . . . . . 1 . . Hauler Manifests 1 | . . . . 1 . . . . . Zone Layout 1 | . 1 . . . . . . . . Garrison Registry 1 | . . . . . 1 . . . . Proto ID Catalog 1 | . . 1 . . . . . . . Fabricator Hacks . | . . . . . . . . . . Repair Station Hacks 8 | . 4 . . . . . 4 . . Scan Component 4 | . 2 . . . . . 2 . . Repair 4 | . 2 . . . . . 2 . . Recycling Unit Hacks 9 | . 1 . . . . 5 1 . 2 Retrieve Components 9 | . 1 . . . . 5 1 . 2 Scanalyzer 7 | . . . 2 . . . 3 . 2 Retrieve Study 7 | . . . 2 . . . 3 . 2 Garrison Access Hacks 3 | . . . . 1 . . 2 . . Unlock Access 2 | . . . . 1 . . 1 . . Coupler Status 1 | . . . . . . . 1 . . Unauthorized Hacks 14 | . . . . 2 . 5 1 . 6 Terminals 9 | . . . . 2 . 1 1 . 5 Track 2 | . . . . . . . 1 . 1 Botnet 6 | . . . . 1 . 1 . . 4 Operators 1 | . . . . 1 . . . . . Fabricators . | . . . . . . . . . . Repair Stations . | . . . . . . . . . . Recycling Units 5 | . . . . . . 4 . . 1 Monitor 1 | . . . . . . 1 . . . Reject 2 | . . . . . . 2 . . . Recyclers 2 | . . . . . . 1 . . 1 Scanalyzers . | . . . . . . . . . . Garrison Access . | . . . . . . . . . . Data Cores Recovered . | . . . . . . . . . . Used . | . . . . . . . . . . Hacking Detections 36 | . 6 . 2 3 2 9 6 1 7 Full Trace Events 4 | . 3 . . . . . . 1 . Feedback Events . | . . . . . . . . . . Feedback Blocked . | . . . . . . . . . . Robot Schematics Acquired . | . . . . . . . . . . Robots Built . | . . . . . . . . . . Authchips . | . . . . . . . . . . Time . | . . . . . . . . . . Total Robot Build Rating . | . . . . . . . . . . Part Schematics Acquired 3 | . . . . . . 3 . . . Parts Built . | . . . . . . . . . . Authchips . | . . . . . . . . . . Time . | . . . . . . . . . . Total Part Build Rating . | . . . . . . . . . . Part Studies Acquired 6 | . . . 2 . . . 3 . 1 Parts Repaired 4 | . 2 . . . . . 2 . . Time 128 | . 52 . . . . . 76 . . Parts Recycled . | . . . . . . . . . . Recycled Matter . | . . . . . . . . . . Retrieved Matter . | . . . . . . . . . . Retrieved Components 17 | . 1 . . . . 12 . . 4 Parts Scanalyzed . | . . . . . . . . . . Part Schematics Acquired . | . . . . . . . . . . Parts Damaged . | . . . . . . . . . . Bothacking | -11 -10 -10 -8 -8 -8 -8 -6 -6 -6 ------------ Run | Yrd Mat Sub Mat Sto Gar Rec Fac Gar Fac Used RIF Installer 3 | . . . . . 2 . . 1 . Hotswap 1 | . . . . . 1 . . . . Zone Cloak 1 | . . . . . . . . 1 . Robots Hacked 15 | . . . . . . . 2 1 12 Non-combat 10 | . . . . . . . . . 10 Combat 5 | . . . . . . . 2 1 2 Robot Hacks Applied 16 | . . . . . . . 3 1 12 parse_system 1 | . . . . . . . . 1 . map_walls 4 | . . . . . . . . . 4 drop_inventory 1 | . . . . . . . . . 1 map_route 1 | . . . . . . . . . 1 find_garrison 2 | . . . . . . . 2 . . streamctrl_high 3 | . . . . . . . 1 . 2 formatsys_low 4 | . . . . . . . . . 4 Relay Couplers Released 27 | . . . . . 3 . . 24 . Machine Destruction 20 | . . . . . . . . 20 . Programmers 7 | . . . . . 3 . . 4 . Attached 3 | . . . . . . . 1 1 1 Fabnet Peak Effective % . | . . . . . . . . . . Robots Rewired 3 | . . . . . . . . 3 . Allies Hacked 1 | . . . . . . . . . 1 Hacks Repelled . | . . . . . . . . . . Allies | -11 -10 -10 -8 -8 -8 -8 -6 -6 -6 -------- Run | Yrd Mat Sub Mat Sto Gar Rec Fac Gar Fac Total Allies 12 | . . . . . . . 1 5 6 Largest Group 5 | . . . . . . . 1 5 4 Highest-Rated Group 279 | . . . . . . . 29 279 217 Highest-Rated Ally 95 | . . . . . . . 29 95 95 Total Orders 15 | . . . 2 4 . . . 4 5 STAY 2 | . . . . . . . . 2 . ROAM 2 | . . . . 1 . . . . 1 FOLLOW 2 | . . . . . . . . 2 . AID 5 | . . . . 1 . . . . 4 DROP 4 | . . . 2 2 . . . . . Ally Attacks 635 | . . . 7 58 75 18 76 82 319 Total Damage 12213 | . . . 268 983 1478 473 1818 2307 4886 Kills 101 | . . . 1 12 18 6 12 15 37 Allies Corrupted 3 | . . . . . . . . . 3 Allies Melted 3 | . . . . . 1 . 1 . 1 Borg Created 50 | . . . 3 10 10 . 10 7 10 Largest Collective 5 | . . . 3 4 3 . 3 5 3 Intel | -11 -10 -10 -8 -8 -8 -8 -6 -6 -6 ------- Run | Yrd Mat Sub Mat Sto Gar Rec Fac Gar Fac Active Infowar (turns) 6429 | 6 85 1484 216 672 59 . 1782 798 1327 Optics 7 | . . . . . . . 7 . . Sensors 1764 | . . . 211 243 . . . . 1310 IFF 1561 | . . . . . . . 1559 2 . Terrain 4350 | 2 85 1484 216 672 2 . 755 1 1133 Structural 569 | . . . . . 6 . 563 . . Traps 846 | . . . . . 51 . . 795 . Seismic 4 | 4 . . . . . . . . . Robot Analysis Total 2 | . 2 . . . . . . . . Derelict Logs Recovered . | . . . . . . . . . . Drone Launches . | . . . . . . . . . . Drone Recoveries . | . . . . . . . . . . Exploration | -11 -10 -10 -8 -8 -8 -8 -6 -6 -6 ------------- Run | Yrd Mat Sub Mat Sto Gar Rec Fac Gar Fac Turns Passed 15728 | 71 2799 3049 244 672 1320 1111 1785 2864 1813 Spaces Moved 6158 | 7 792 920 118 358 638 502 742 1266 815 Core . | . . . . . . . . . . Treads 1719 | 7 792 920 . . . . . . . Legs . | . . . . . . . . . . Wheels 4439 | . . . 118 358 638 502 742 1266 815 Hover . | . . . . . . . . . . Flight . | . . . . . . . . . . Fastest Speed 146 | 160 160 320 150 150 155 155 158 158 146 Average Speed 214 | 160 302 320 160 153 180 201 177 170 180 Slowest Speed 320 | 160 320 320 165 155 280 295 191 176 235 Overloaded Moves . | . . . . . . . . . . Propulsion Burnouts . | . . . . . . . . . . Robots Hopped . | . . . . . . . . . . Potential Cave-ins . | . . . . . . . . . . Cave-ins Triggered . | . . . . . . . . . . Exploration Rate (%) 49 | 2 95 55 9 57 51 93 22 85 25 Regions Visited 9 Branch Regions 3 Pre-discovered Areas . | . . . . . . . . . . Known Exits Taken 2 | . . . . 1 . . 1 . . Unknown Exits Taken 5 | 1 1 1 1 . . 1 . . . Scrap Searched 2 | . . 2 . . . . . . . Spaces Dug 70 | . . . . . . . 7 55 8 Terrain Destroyed 107 | . . . . . . . 7 57 43 Melee 70 | . . . . . . . 7 55 8 Projectile 2 | . . . . . . . . 2 . AOE 35 | . . . . . . . . . 35 Terrain Rammed 2 | . . . . . 2 . . . . Walls Destroyed 2 | . . . . . 2 . . . . Machines Disabled . | . . . . . . . . . . Actions | -11 -10 -10 -8 -8 -8 -8 -6 -6 -6 --------- Run | Yrd Mat Sub Mat Sto Gar Rec Fac Gar Fac Total 8001 | 50 1030 981 168 463 782 607 1161 1678 1081 Wait 1015 | 28 109 24 20 69 112 68 285 145 155 Move 6150 | 6 791 919 117 357 637 501 742 1265 815 Hop . | . . . . . . . . . . Pick Up 132 | 1 25 2 8 9 3 14 38 23 9 Fast Attach 27 | 2 4 1 5 1 1 3 6 2 2 Attach 16 | . 1 1 1 1 . 2 9 . 1 Detach 4 | . . . 1 . . 2 1 . . Swap 95 | 2 5 2 2 1 6 4 19 16 38 Drop 118 | 3 9 7 9 9 3 13 30 25 10 Fire 164 | 8 71 25 . . . . 1 32 27 Melee 162 | . . . . . . . 18 131 13 Ram 3 | . . . . . 2 . . . 1 Kick . | . . . . . . . . . . Crush 15 | . 15 . . . . . . . . Escape Stasis 46 | . . . . 6 8 . . 32 . Rewire 4 | . . . 2 . . . 2 . . Trap . | . . . . . . . . . . Miscellaneous 50 | . . . 3 10 10 . 10 7 10 Route ------- -11/Scrapyard -10/Materials (discovered 6 exits: [*Mat x3] / [*Min x2] / *Sub) -10/Subcaves -8/Materials -8/Storage -8/Garrison (discovered 3 exits: *Rec x3) -8/Recycling -6/Factory (discovered 3 exits: Fac / [Ext] / Gar) -6/Garrison (discovered 3 exits: *Fac x3) -6/Factory (discovered 1 exit: *Fac) History --------- Turn | Location | Event 52 | -11/Scrapyard | Discovered new exit (range 2) 72 | -11/Scrapyard | Entered Materials 193 | -10/Materials | Discovered new exit (range 7) 306 | -10/Materials | Build established: Mutant 364 | -10/Materials | Discovered new exit (range 8) 1012 | -10/Materials | Discovered new exit (range 11) 1602 | -10/Materials | Discovered new exit (range 16) 2093 | -10/Materials | Repaired Lgt. Treads 2121 | -10/Materials | Repaired Lgt. Treads 2148 | -10/Materials | Discovered new exit (range 12) 2437 | -10/Materials | Discovered new exit (range 16) 2871 | -10/Materials | Entered Subcaves 2872 | -10/Subcaves | Approached by a straggling Scientist 3103 | -10/Subcaves | Shifting Twisted Machinery released Sub. Laser 3197 | -10/Subcaves | Discovered new exit (range 5) 3210 | -10/Subcaves | Core integrity fell below 50% 3217 | -10/Subcaves | Shifting Twisted Machinery released Mak. Kinetic Plating 3229 | -10/Subcaves | Shifting Twisted Machinery released Shrapnel Trap 3784 | -10/Subcaves | Visited Clippyterm 3794 | -10/Subcaves | Learned Research security intel 3794 | -10/Subcaves | Learned Research machine intel 4049 | -10/Subcaves | Core integrity fell below 20% 5068 | -10/Subcaves | Visited 4L-MR0's lab 5103 | -10/Subcaves | Found Prototype Special Melee Weapon 5142 | -10/Subcaves | Found Rainbow Chip 5920 | -10/Subcaves | Entered Materials 5920 | -8/Materials | Evolved 4 slots: Utility x1, Weapon x3 5922 | -8/Materials | Identified 1B-0RG's Assimilator 6005 | -8/Materials | Assimilating Transporter 3a into Collective. 6014 | -8/Materials | Assimilating Scavenger 3a into Collective. 6085 | -8/Materials | Assimilating Technician 3a into Collective. 6112 | -8/Materials | Discovered new exit (range 6) 6164 | -8/Materials | Entered Storage 6164 | -8/Storage | Accompanied by 1 ally 6228 | -8/Storage | Assimilating Defender 3a into Collective. 6242 | -8/Storage | Assimilating Transporter 3b into Collective. 6290 | -8/Storage | Assimilating Technician 3b into Collective. 6319 | -8/Storage | Assimilating Trooper 3a into Collective. 6353 | -8/Storage | Lost 4 allies 6358 | -8/Storage | Assimilating Transporter 3c into Collective. 6403 | -8/Storage | Assimilating Scavenger 3b into Collective. 6409 | -8/Storage | Assimilating Machinist 3a into Collective. 6526 | -8/Storage | Assimilating Informer 3a into Collective. 6701 | -8/Storage | Assimilating Defender 3b into Collective. 6812 | -8/Storage | Assimilating Defender 3c into Collective. 6833 | -8/Storage | Identified exit to Garrison 6836 | -8/Storage | Entered Garrison 6836 | -8/Garrison | Accompanied by 4 allies 6924 | -8/Garrison | Triggered checkpoint 6958 | -8/Garrison | Assimilating Trooper 3b into Collective. 6983 | -8/Garrison | Lost 4 allies 7012 | -8/Garrison | Triggered checkpoint 7124 | -8/Garrison | Triggered checkpoint 7128 | -8/Garrison | Triggered checkpoint 7152 | -8/Garrison | Assimilating Trooper 3c into Collective. 7158 | -8/Garrison | Assimilating Trooper 3d into Collective. 7162 | -8/Garrison | Assimilating Trooper 3e into Collective. 7171 | -8/Garrison | Assimilating Trooper 3f into Collective. 7185 | -8/Garrison | Assimilating Trooper 3g into Collective. 7191 | -8/Garrison | Assimilating Trooper 3h into Collective. 7214 | -8/Garrison | Lost 5 allies 7296 | -8/Garrison | Triggered checkpoint 7394 | -8/Garrison | Discovered new exit (range 12) 7505 | -8/Garrison | Discovered new exit (range 9) 7623 | -8/Garrison | Assimilating Trooper 3i into Collective. 7666 | -8/Garrison | Discovered new exit (range 13) 7708 | -8/Garrison | Triggered checkpoint 7709 | -8/Garrison | Assimilating Trooper 3j into Collective. 7714 | -8/Garrison | Assimilating Trooper 3k into Collective. 7753 | -8/Garrison | Discovered new exit (range 86) 7753 | -8/Garrison | Discovered new exit (range 54) 7753 | -8/Garrison | Discovered new exit (range 17) 7796 | -8/Garrison | Installed Relay Interface Framework 8127 | -8/Garrison | Expanded RIF knowledge: Hotswap 8156 | -8/Garrison | Entered Recycling 8156 | -8/Recycling | Accompanied by 3 allies 8681 | -8/Recycling | Build established: Hauler-Mutant 9128 | -8/Recycling | Discovered new exit (range 9) 9267 | -8/Recycling | Entered Factory 9267 | -6/Factory | Accompanied by 3 allies 9267 | -6/Factory | Evolved 4 slots: Utility x3, Weapon x1 9434 | -6/Factory | Lost 3 allies 9647 | -6/Factory | Assimilating Gladiator 5a into Collective. 9804 | -6/Factory | Assimilating Virus 5a into Collective. 9810 | -6/Factory | Assimilating Virus 5b into Collective. 9817 | -6/Factory | Assimilating Virus 5c into Collective. 9829 | -6/Factory | Assimilating Hacker 5a into Collective. 10095 | -6/Factory | Lost 3 allies 10117 | -6/Factory | Assimilating Virus 5d into Collective. 10122 | -6/Factory | Assimilating Virus 5e into Collective. 10137 | -6/Factory | Assimilating Virus 5f into Collective. 10174 | -6/Factory | Assimilating Soldier 5b into Collective. 10179 | -6/Factory | Lost 3 allies 10180 | -6/Factory | Assimilating Soldier 5c into Collective. 10316 | -6/Factory | Discovered new exit (range 16) 10421 | -6/Factory | Discovered new exit (range 13) 10465 | -6/Factory | Repaired Hrd. Medium Armor Plating 10504 | -6/Factory | Repaired Hrd. Medium Armor Plating 10572 | -6/Factory | Cargo convoy interrupted 10611 | -6/Factory | Attached Rainbow Chip, gained temporary slots: Power, Propulsion, Utility, Weapon 10666 | -6/Factory | Found PL-3XN's Ring of Power 11052 | -6/Factory | Identified exit to Garrison 11052 | -6/Factory | Entered Garrison 11168 | -6/Garrison | Triggered checkpoint 11169 | -6/Garrison | Assimilating Virus 5g into Collective. 11170 | -6/Garrison | Warlord forces raided the area 11172 | -6/Garrison | Assimilating Virus 5h into Collective. 11178 | -6/Garrison | Assimilating Soldier 5d into Collective. 11186 | -6/Garrison | Assimilating Soldier 5e into Collective. 11189 | -6/Garrison | Assimilating Virus 5i into Collective. 11204 | -6/Garrison | Triggered checkpoint 11316 | -6/Garrison | Triggered checkpoint 11355 | -6/Garrison | Discovered new exit (range 10) 11374 | -6/Garrison | Triggered checkpoint 11406 | -6/Garrison | Garrison Relay disabled 11416 | -6/Garrison | Triggered checkpoint 11421 | -6/Garrison | Assimilating Guardian 5a into Collective. 11625 | -6/Garrison | Found Fusion Bomb Launcher 11704 | -6/Garrison | Build established: Bothacker-Mutant 11828 | -6/Garrison | Triggered checkpoint 11944 | -6/Garrison | Discovered new exit (range 8) 12098 | -6/Garrison | Triggered checkpoint 12135 | -6/Garrison | Assimilating Fighter 5a into Collective. 12236 | -6/Garrison | Garrison Relay disabled 12440 | -6/Garrison | Triggered checkpoint 12627 | -6/Garrison | Found embedded Infiltrators 12676 | -6/Garrison | Triggered checkpoint 12726 | -6/Garrison | Garrison Relay disabled 13219 | -6/Garrison | Garrison Relay disabled 13463 | -6/Garrison | Discovered new exit (range 13) 13613 | -6/Garrison | Expanded RIF knowledge: Zone Cloak 13655 | -6/Garrison | Garrison Relay disabled 13916 | -6/Garrison | Entered Factory 13916 | -6/Factory | Accompanied by 6 allies 14124 | -6/Factory | Discovered new exit (range 12) 14190 | -6/Factory | Identified exit to Factory 14213 | -6/Factory | P-60 Hacker assimilated allied YO-MXS(g) 14266 | -6/Factory | First assault squad dispatched 14490 | -6/Factory | Lost 4 allies 14538 | -6/Factory | Assimilating Informer 5a into Collective. 14544 | -6/Factory | Assimilating Conveyor 5a into Collective. 14563 | -6/Factory | Assimilating Hacker 5b into Collective. 14606 | -6/Factory | Build established: Bothacker-Assassin 14956 | -6/Factory | Assimilating Gladiator 5b into Collective. 14961 | -6/Factory | Assimilating Disruptor 5a into Collective. 15477 | -6/Factory | High security lockdown imminent 15523 | -6/Factory | Destroyed 7 combat bots 15557 | -6/Factory | High security lockdown engaged 15615 | -6/Factory | Garrison activated, responded to threat 15628 | -6/Factory | Assimilating Guardian 5b into Collective. 15641 | -6/Factory | Assimilating Virus 5j into Collective. 15653 | -6/Factory | Assimilating Guardian 5c into Collective. 15677 | -6/Factory | Lost 3 allies 15710 | -6/Factory | Assimilating Imp 5a into Collective. 15713 | -6/Factory | Assimilating Soldier 5g into Collective. 15728 | -6/Factory | Core integrity fell below 50% 15729 | -6/Factory | Self-destructed Last Messages --------------- 15713_ Penetrated by Slug. 15715_ P-60 Hacker resets H-66 Slayer, system corruption cleaned. 15715_ L-41 Fighter sneak attacks. 15715_ Borg Imp 5a destroyed. 15715_ Core damaged by loss of Borg Imp 5a (-10). 15716_ M-28 Smith repairs B-48 Gladiator. 15717_ Slug penetrates Wall. 15717_ Chain reaction triggered in Lgt. Angular Momentum Engine. 15718_ Critical hit (Burn: +37). 15719_ L-41 Fighter sneak attacks. 15719_ Borg Soldier 5g destroyed. 15719_ Core damaged by loss of Borg Soldier 5g (-10). 15719_ Remote Force Field destroyed. 15720_ Penetrated by Slug. 15721_ M-28 Smith repairs G-67 Veteran. 15725_ P-60 Hacker suffers critical hit (Burn). 15725_ 1B-0RG's Assimilator destroyed. 15728_ Com. Wheel+ destroyed. 15728_ Slug penetrates Wall. 15729_ Temporary Propulsion slot lost. Map ----- +----------------------------------------------------+ | ?????????????????????????????????????????????????? | | ?????????????????????????????????????????????????? | | ?????????????????????????????????????????????????? | | ?????????????????????????????????????????????????? | | ?????????????????????????????????????????????????? | | ?????????????????????????????????????????????????? | | ?????????????????????????????????????????????????? | | ?????????????????????????????????????????????????? | | ?????????????????????????????????????????????????? | | ?????????????????????????????????????????????????? | | ?????????????????????????????????????????????????? | | ?????????????????????????????????????????????????? | | ?????????????????????????????????????????????????? | | ?????????????????????????????????????????????????? | | ?????????????????????????????????????????????????? | | ??????????????##########?????????????????????????? | | ????????????? ?????????????????????????? | | ????????????? ?????????????????????????? | | ?????????????? ?????????????????????????? | | ??????????????? ?????????????????????????? | | ????????????????? #????????????????????????? | | ??????????????????# #????????????????????????? | | ??????????????????# ###+############?????????? | | ??????????????????# g ????????? | | ??????????????????# #??????????? | | ??????????????????# @ #??????????? | | ??????????????????# #??????????? | | ??????????????????# #??????????? | | ??????????????????# p###+##### #??????????? | | ??????????????????# h# ## #??????????? | | ??????????????????# b " """ ## #??????????? | | ?????????########## ll%" """ ## +??????????? | | ??????? "%" g m[%*= """ ## #??????????? | | ????????# " *=%" "" ## #??????????? | | ????????# [# "" ## #??????????? | | ????????# [# ## #??????????? | | ????????# # = ## #??????????? | | ????????+ # ## #??????????# | | ????????# # ## #??????????# | | ????????# #!=""" ## #??????????# | | ?????????########### #!%%G" ## ##########?# | | ???????????????????# !#[[""" ## # #?# | | ???????????????????# %%%%* #" #" """ #?# | | ??????????????######+##=######### #" """ #?# | | ??????????????# ==[=%= # #" """ =#?# | | ??????????????# [**!% %/%% #T #?# | | ??????????????# """""""!**!% #" #" /* ]#?# | | ??????????????# """"""" *!! # #" / #?# | | ??????????????# """"""" # #" ### | | ??????????????# """"""" ! # # | +----------------------------------------------------+ Best States ------------- Heat Dissipation 37 Energy Generation 29 Energy Capacity 810 Matter Stores 550 Matter Capacity 550 Sight Range 23 Robot Scan Range 16 Terrain Scan Range 16 Terrain Scan Density 210 Additional Mass Support 12 Armor Coverage 450 Propulsion Shielding 66 Evasion (%) 40 Recoil Reduction 2 Relay Coupler Types 2 Relay Coupler Value 40 Item Schematics ----------------- Gauss Cannon | -8/Recycling | Hacked Hacking Suite | -8/Recycling | Hacked Power Sword | -8/Recycling | Hacked Robot Schematics ------------------ None Fabricated ------------ Nothing Repaired ---------- Lgt. Treads | 50% | -10/Materials Lgt. Treads | 61% | -10/Materials Hrd. Medium Armor Plating | 22% | -6/Factory Hrd. Medium Armor Plating | 51% | -6/Factory Studied --------- Com. Wheel | -8/Materials | Hacked Wheel | -8/Materials | Hacked Arm. Wheel | -6/Factory | Hacked Maul | -6/Factory | Hacked Remote Datajack | -6/Factory | Hacked Lance | -6/Factory | Hacked Alien Tech Used ----------------- None Achievements -------------- I, Locutus Join The Dark Side Mindtrick You Will Be Upgraded Challenges ------------ None Game ------ Seed ShiftLayeredMaterializer Manual? 0 Play Time 02:30:58 Cumulative 446.1 hours Start 2026.02.10 @ 19:21:08 End 2026.02.10 @ 22:07:53 Sessions 1 Manual Loads 0 Difficulty Rogue Special Mode None Game No. 215 Rogue 215 Adventurer 0 Explorer 0 Win Type - Total 15 Types 8/0/5/2/0/0/0/0/0/0 Lore% 70 Gallery% 70 Achievement% 49 Wizard Run 0 Options --------- Layout 0 ASCII 0 Keyboard 0 Movement Numpad Keybinds 0 Fullscreen 1 Font 18/SmallcapsGlow Map View 76x50 Zoom Use 0% Tactical HUD 1 Map Filters NONE Filters NONE Steam 1 RUN: 84d1c7a1-bfc2-47cf-9312-ac61f0c4487b